fUSD/lending_fUSD_20260217
["ID","MTS","AMOUNT","RATE_DAILY","PERIOD"]
[405766916,1771288240185,-500.0,0.00015848,2]
[405766917,1771288240194,-500.0,0.00015848,2]
[405766918,1771288240204,-500.0,0.00015848,2]
[405766919,1771288240213,-150.19824857,0.00015848,2]
[405766920,1771288240223,-160.0,0.00015887,2]
[405766921,1771288240232,-173.53171403,0.00015887,2]
[405766922,1771288240241,-169.7592278,0.00015903,2]
[405766923,1771288240250,-500.0,0.00015903,2]
[405766924,1771288240260,-534.16290156,0.00015903,2]
[405766925,1771288240269,-500.0,0.00015903,2]
[405766926,1771288240283,-500.0,0.00015903,2]
[405766927,1771288240293,-500.0,0.00015903,2]
[405766928,1771288240302,-500.0,0.00015903,2]
[405766929,1771288240313,-465.63318921,0.00015903,2]
[405766930,1771288240322,-575.0,0.00015903,2]
[405766931,1771288240339,-150.0,0.00015903,2]
[405766932,1771288240350,-500.0,0.00015903,2]
[405766933,1771288240361,-614.60246514,0.00015903,2]
[405766934,1771288240372,-500.0,0.00015903,2]
[405766935,1771288240381,-474.11822025,0.00015903,2]
[405766936,1771288240391,-500.0,0.00015903,2]
[405766937,1771288240401,-500.0,0.00015903,2]
[405766938,1771288240410,-500.0,0.00015903,2]
[405766939,1771288240422,-500.0,0.00015903,2]
[405766940,1771288240431,-500.0,0.00015957,2]
[405766941,1771288240440,-500.0,0.00015957,2]
[405766942,1771288240451,-500.0,0.00015957,2]
[405766943,1771288240696,-500.0,0.00015957,2]
[405766944,1771288240707,-500.0,0.00015957,2]
[405766945,1771288240716,-575.0,0.00015957,2]
[405766946,1771288240726,-200.63931179,0.00015957,2]
[405766947,1771288240735,-500.0,0.00015957,2]
[405766948,1771288240744,-500.0,0.00015957,2]
[405766949,1771288240753,-500.0,0.00015957,2]
[405766950,1771288240763,-500.0,0.00015957,2]
[405766951,1771288240772,-500.0,0.00015957,2]
[405766952,1771288240781,-500.0,0.00015957,2]
[405766953,1771288240791,-5000.0,0.0001596,2]
[405766954,1771288240800,-302.88716653,0.00016,2]
[405766955,1771288240809,-500.0,0.00016012,2]
[405766956,1771288240819,-500.0,0.00016012,2]
[405766957,1771288240828,-500.0,0.00016012,2]
[405766958,1771288240838,-500.0,0.00016012,2]
[405766959,1771288240848,-500.0,0.00016012,2]
[405766960,1771288240857,-575.0,0.00016012,2]
[405766961,1771288240866,-462.8894868,0.00016012,2]
[405766962,1771288240875,-500.0,0.00016012,2]
[405766963,1771288240884,-500.0,0.00016012,2]
[405766964,1771288240893,-500.0,0.00016012,2]
[405766965,1771288240902,-500.0,0.00016012,2]
[405766966,1771288240911,-179.22357919,0.00016012,2]
[405766967,1771288240921,-712.87,0.00016045,2]
[405766968,1771288240930,-500.0,0.00016067,2]
[405766969,1771288240939,-500.0,0.00016067,2]
[405766970,1771288240950,-500.0,0.00016067,2]
[405766971,1771288240959,-500.0,0.00016067,2]
[405766972,1771288240968,-500.0,0.00016067,2]
[405766973,1771288240978,-575.0,0.00016067,2]
[405766974,1771288240988,-500.0,0.00016067,2]
[405766975,1771288240998,-548.0,0.00016067,2]
[405766976,1771288241008,-500.0,0.00016067,2]
[405766977,1771288241018,-500.0,0.00016067,2]
[405766978,1771288241028,-483.2761196,0.00016074,2]
[405766979,1771288241038,-6453.0,0.00016103,2]
[405766980,1771288241049,-500.0,0.00016122,2]
[405766981,1771288241058,-500.0,0.00016122,2]
[405766982,1771288241067,-500.0,0.00016122,2]
[405766983,1771288241079,-500.0,0.00016122,2]
[405766984,1771288241088,-500.0,0.00016122,2]
[405766985,1771288241097,-575.0,0.00016122,2]
[405766986,1771288241107,-500.0,0.00016122,2]
[405766987,1771288241116,-500.0,0.00016122,2]
[405766988,1771288241126,-500.0,0.00016122,2]
[405766989,1771288241135,-500.0,0.00016177,2]
[405766990,1771288241144,-500.0,0.00016177,2]
[405766991,1771288241154,-500.0,0.00016177,2]
[405766992,1771288241164,-500.0,0.00016177,2]
[405766993,1771288241173,-500.0,0.00016177,2]
[405766994,1771288241183,-575.0,0.00016177,2]
[405766995,1771288241193,-472.8397115,0.00016177,2]
[405766996,1771288241203,-500.0,0.00016177,2]
[405766997,1771288241212,-500.0,0.00016177,2]
[405766998,1771288241222,-5000.00941589,0.000162,5]
[405766999,1771288241231,-500.0,0.00016231,2]
[405767000,1771288241240,-500.0,0.00016231,2]
[405767001,1771288241250,-500.0,0.00016231,2]
[405767002,1771288241259,-500.0,0.00016231,2]
[405767003,1771288241269,-575.0,0.00016231,2]
[405767004,1771288241280,-417.11509695,0.00016231,2]
[405767005,1771288241292,-500.0,0.00016231,2]
[405767006,1771288241301,-166.66,0.00016254,2]
[405767007,1771288241312,-150.0,0.00016286,2]
[405767008,1771288241323,-500.0,0.00016286,2]
[405767009,1771288241332,-500.0,0.00016286,2]
[405767010,1771288241341,-500.0,0.00016286,2]
[405767011,1771288241351,-575.0,0.00016286,2]
[405767012,1771288241361,-500.0,0.00016286,2]
[405767013,1771288241371,-200.0,0.0001634,2]
[405767014,1771288241380,-500.0,0.00016341,2]
[405767015,1771288241391,-500.0,0.00016341,2]
[405767016,1771288241400,-500.0,0.00016341,2]
[405767017,1771288241409,-575.0,0.00016341,2]
[405767018,1771288241418,-500.0,0.00016341,2]
[405767019,1771288241427,-500.0,0.00016396,2]
[405767020,1771288241438,-210.67755225,0.00016396,2]
[405767021,1771288241453,-500.0,0.00016396,2]
[405767022,1771288241474,-575.0,0.00016396,2]
[405767023,1771288241494,-500.0,0.00016396,2]
[405767024,1771288241515,-500.0,0.00016451,2]
[405767025,1771288241536,-507.52129439,0.00016451,2]
[405767026,1771288241555,-575.0,0.00016451,2]
[405767027,1771288241571,-500.0,0.00016451,2]
[405767028,1771288241594,-500.0,0.00016505,2]
[405767029,1771288241615,-575.0,0.00016505,2]
[405767030,1771288241637,-500.0,0.00016505,2]
[405767031,1771288241659,-575.0,0.0001656,2]
[405767032,1771288241668,-500.0,0.0001656,2]
[405767033,1771288241677,-575.0,0.00016615,2]
[405767034,1771288241687,-552.41062844,0.00016615,2]
[405767035,1771288241696,-575.0,0.0001667,2]
[405767036,1771288241706,-159.33,0.00016712,2]
[405767037,1771288241714,-508.93031567,0.00016717,2]
[405767038,1771288241723,-575.0,0.00016725,2]
[405767039,1771288241732,-166.66,0.00016757,2]
[405767040,1771288241742,-575.0,0.00016779,2]
[405767041,1771288241751,-1600.0,0.0001679,2]
[405767042,1771288241760,-575.0,0.00016834,2]
[405767043,1771288241769,-2670.92523884,0.00016871,2]
[405767044,1771288241778,-575.0,0.00016889,2]
[405767045,1771288241787,-575.0,0.00016944,2]
[405767046,1771288241797,-575.0,0.00016998,2]
[405767047,1771288241808,-915.0,0.00016999,2]
[405767048,1771288241818,-915.0,0.00016999,2]
[405767049,1771288241828,-915.0,0.00016999,2]
[405767050,1771288241839,-721903.79182881,0.00017,2]
[405767051,1771288241848,-579.56884041,0.00017053,2]
[405767052,1771288241859,-166.66,0.0001726,2]
[405767053,1771288241868,-162.0,0.000173,2]
[405767054,1771288241878,-160.42259811,0.00017445,2]
[405767055,1771288241891,-163.0,0.000175,2]
[405767056,1771288241910,-500.0,0.00017564,2]
[405767057,1771288241920,-500.0,0.00017564,2]
[405767058,1771288241930,-500.0,0.00017564,2]
[405767059,1771288241940,-500.0,0.00017564,2]
[405767060,1771288241950,-500.0,0.00017564,2]
[405767061,1771288241960,-500.0,0.00017564,2]
[405767062,1771288241969,-500.0,0.00017564,2]
[405767063,1771288241978,-500.0,0.00017564,2]
[405767064,1771288241988,-784.20386678,0.000177,2]
[405767065,1771288241997,-403.0,0.000177,5]
[405767066,1771288242006,-9035.0,0.00017714,2]
[405767067,1771288242015,-166.66,0.00017763,2]
[405767068,1771288242024,-500.0,0.00017808,2]
[405767069,1771288242034,-250.0,0.00017808,20]
[405767070,1771288242043,-250.0,0.00017808,20]
[405767071,1771288242052,-250.0,0.00017808,20]
[405767072,1771288242063,-250.0,0.00017808,20]
[405767073,1771288242073,-250.0,0.00017808,20]
[405767074,1771288242082,-250.0,0.00017808,20]
[405767075,1771288242092,-250.0,0.00017808,20]
[405767076,1771288242102,-250.0,0.00017808,20]
[405767077,1771288242111,-250.0,0.00017808,20]
[405767078,1771288242121,-250.0,0.00017808,20]
[405767079,1771288242130,-250.0,0.00017808,20]
[405767080,1771288242140,-250.0,0.00017808,20]
[405767081,1771288242149,-250.0,0.00017808,20]
[405767082,1771288242159,-250.0,0.00017808,20]
[405767083,1771288242168,-250.0,0.00017808,20]
[405767084,1771288242177,-211.316215,0.00017808,20]
[405767085,1771288242188,-1003.96031396,0.0001786,2]
[405767086,1771288242198,-508.93031567,0.000179,2]
[405767087,1771288242207,-2554.58146818,0.000179,5]
[405767088,1771288242216,-266.15807727,0.000179,2]
[405767089,1771288242226,-869.05333228,0.000179,2]
[405767090,1771288242236,-2670.92523884,0.000179,2]
[405767091,1771288242245,-500.0,0.00017918,2]
[405767092,1771288242255,-500.0,0.00017918,2]
[405767093,1771288242264,-500.0,0.00017918,2]
[405767094,1771288242274,-603.0,0.00017918,2]
[405767095,1771288242288,-500.0,0.00017973,2]
[405767096,1771288242297,-254.27341698,0.0001799,2]
[405767097,1771288242307,-300.0,0.00017999,2]
[405767098,1771288242318,-666.0,0.00017999,2]
[405767100,1771288242329,-300.0,0.00017999,2]
[405767102,1771288242339,-666.0,0.00017999,2]
[405767104,1771288242348,-300.0,0.00017999,2]
[405767106,1771288242358,-915.0,0.00017999,2]
[405767108,1771288242367,-915.0,0.00017999,2]
[405767110,1771288242376,-915.0,0.00017999,2]
[405767112,1771288242387,-915.0,0.00017999,2]
[405767114,1771288242396,-915.16863599,0.00017999,2]
[405767116,1771288242406,-23532.64461985,0.00017999,2]
[405767118,1771288242416,-771.1,0.00018,7]
[405767120,1771288242426,-7419052.07595091,0.00018,2]
[405767125,1771288242946,-14211.4426526,0.00018,2]
[405767131,1771288243498,-22866.73388525,0.00013099,2]
[405767132,1771288243507,-6343498.96344312,0.00018,2]
[405767133,1771288243558,-449.36138144,0.00013698,2]
[405767134,1771288244487,-500.0,0.00010973,2]
[405767135,1771288244505,-50.63861856,0.00013698,2]
[405767136,1771288244515,-165.23555643,0.00013698,2]
[405767137,1771288244524,-794.26109298,0.00014299,2]
[405767138,1771288244535,-1894.1754418,0.00014299,2]
[405767139,1771288245438,-2600.0,0.00013899,2]
[405767144,1771288335178,756.49525386,0.000153,30]
[405767145,1771288340654,2635.90147981,9.8e-05,3]
[405767146,1771288340738,2893.06370186,9.8e-05,3]
[405767147,1771288340796,3150.22592391,9.8e-05,3]
[405767148,1771288340905,1864.41481366,9.8e-05,3]
[405767149,1771288341084,500.0,0.000153,30]
[405767150,1771288341461,500.0,0.000153,30]
[405767151,1771288341581,500.0,0.000153,30]
[405767152,1771288341972,500.0,0.000153,30]
[405767153,1771288545360,442.77566224,9.8e-05,3]
[405767154,1771288545444,574.52471026,9.8e-05,3]
[405767155,1771288545558,618.44105959,9.8e-05,3]
[405767156,1771288545595,662.35740893,9.8e-05,3]
[405767157,1771288847595,579.27,9.6e-05,2]
[405767158,1771288908280,-500.0,9.614e-05,2]
[405767159,1771288908312,-250.0,9.614e-05,2]
[405767160,1771288908344,-229.0,9.614e-05,2]
[405767161,1771288908373,-250.0,9.674e-05,2]
[405767162,1771288908403,-1500.0,9.694e-05,2]
[405767163,1771288908433,-500.0,9.7e-05,2]
[405767164,1771288908464,-152.44,9.725e-05,2]
[405767165,1771288908496,-1200.0,9.75e-05,2]
[405767166,1771288908526,-300.0,9.751e-05,2]
[405767167,1771288908649,-300.0,9.751e-05,2]
[405767168,1771288922590,150.0,9.75e-05,2]
[405767169,1771288978674,300.0,9.75e-05,2]
[405767170,1771288981240,300.0,9.75e-05,2]
[405767171,1771288987326,285.36536845,9.75e-05,2]
[405767172,1771288987375,500.0,9.75e-05,2]
[405767173,1771288987422,315.23906414,9.75e-05,2]
[405767174,1771288987499,500.0,9.75e-05,2]
[405767175,1771288987557,397.54453345,9.75e-05,2]
[405767176,1771288987636,500.0,9.75e-05,2]
[405767177,1771288991187,500.0,9.75e-05,2]
[405767178,1771288991247,243.90571355,9.75e-05,2]
[405767179,1771288998545,150.0,9.724e-05,2]
[405767180,1771288999035,150.0,9.724e-05,2]
[405767181,1771289029517,500.0,9.514e-05,2]
[405767182,1771289037902,150.0,0.00011233,120]
[405767183,1771289094862,3171.82891194,9.6e-05,3]
[405767184,1771289094926,5438.20059589,9.6e-05,3]
[405767185,1771289094964,4531.65192231,9.6e-05,3]
[405767186,1771289095041,4984.9262591,9.6e-05,3]
[405767187,1771289101622,1200.0,9.75e-05,2]
[405767188,1771289102687,150.0,9.75e-05,2]
[405767189,1771289114664,195.91,7.871e-05,2]
[405767190,1771289115081,195.91,8.659e-05,2]
[405767191,1771289115331,195.91,9.446e-05,2]
[405767192,1771289159035,300.0,9.75e-05,2]
[405767194,1771289161194,300.0,9.75e-05,2]
[405767195,1771289193659,500.0,9.651e-05,2]
[405767196,1771289213274,1570.22532041,9.651e-05,2]
[405767197,1771289213318,10000.01,9.651e-05,2]
[405767198,1771289213346,10000.01,9.651e-05,2]
[405767209,1771289276278,400.04909175,9.5e-05,3]
[405767210,1771289276332,425.91623917,9.5e-05,3]
[405767211,1771289276386,322.44764948,9.5e-05,3]
[405767212,1771289276439,451.7833866,9.5e-05,3]
[405767213,1771289394987,157.884,0.00020299,120]
[405767217,1771289431636,-675.352,9.649e-05,2]
[405767218,1771289431690,-524.648,9.649e-05,2]
[405767219,1771289431699,-229.0,9.649e-05,2]
[405767220,1771289431709,-150.0,9.65e-05,2]
[405767221,1771289431718,-300.0,9.65e-05,2]
[405767222,1771289431728,-300.0,9.65e-05,2]
[405767223,1771289431738,-21.48931268,9.65e-05,2]
[405767224,1771289431764,-178.26644524,9.65e-05,2]
[405767225,1771289431773,-414.09561621,9.65e-05,2]
[405767233,1771289437856,-85.90438379,9.65e-05,2]
[405767234,1771289437866,-220.6673449,9.65e-05,2]
[405767235,1771289437875,-328.28117342,9.65e-05,2]
[405767236,1771289437884,-500.0,9.65e-05,2]
[405767237,1771289437894,-9048.59444626,9.651e-05,2]
[405767238,1771289437904,-2270.62534872,9.651e-05,2]
[405767240,1771289437914,-3478429.75467959,9.651e-05,2]
[405767242,1771289437924,-2500.0,9.651e-05,2]
[405767244,1771289437933,-6736.7294,9.651e-05,2]
[405767246,1771289437942,-500.0,9.651e-05,2]
[405767248,1771289437951,-200.0,9.724e-05,2]
[405767250,1771289437961,-1000.0,9.75e-05,2]
[405767252,1771289437970,-29268.08,9.82e-05,2]
[405767254,1771289437980,-1000.0,9.851e-05,2]
[405767256,1771289437989,-171.6,0.0001,2]
[405767258,1771289437999,-151.0,0.0001,2]
[405767260,1771289438008,-151.0,0.0001,2]
[405767263,1771289438018,-151.0,0.0001,2]
[405767264,1771289438027,-151.0,0.0001,2]
[405767265,1771289438040,-151.0,0.0001,2]
[405767266,1771289438049,-151.0,0.0001,2]
[405767267,1771289438059,-151.0,0.0001,2]
[405767268,1771289438068,-151.0,0.0001,2]
[405767269,1771289438079,-151.0,0.0001,2]
[405767270,1771289438089,-151.0,0.0001,2]
[405767271,1771289438099,-500.0,0.0001,2]
[405767272,1771289438108,-151.0,0.0001,2]
[405767273,1771289438118,-151.0,0.0001,2]
[405767274,1771289438128,-500.0,0.0001,2]
[405767275,1771289438137,-500.0,0.0001,2]
[405767276,1771289438147,-151.0,0.0001,2]
[405767277,1771289438156,-151.0,0.0001,2]
[405767278,1771289438166,-500.0,0.0001,2]
[405767279,1771289438175,-500.0,0.0001,2]
[405767280,1771289438185,-151.0,0.0001,2]
[405767281,1771289438194,-151.0,0.0001,2]
[405767282,1771289438204,-500.0,0.0001,2]
[405767283,1771289438213,-500.0,0.0001,2]
[405767284,1771289438223,-151.0,0.0001,2]
[405767285,1771289438235,-151.0,0.0001,2]
[405767286,1771289438244,-500.0,0.0001,2]
[405767287,1771289438254,-500.0,0.0001,2]
[405767288,1771289438264,-151.0,0.0001,2]
[405767289,1771289438274,-151.0,0.0001,2]
[405767290,1771289438283,-500.0,0.0001,2]
[405767291,1771289438293,-500.0,0.0001,2]
[405767292,1771289438303,-151.0,0.0001,2]
[405767293,1771289438312,-151.0,0.0001,2]
[405767294,1771289438322,-500.0,0.0001,2]
[405767295,1771289438333,-151.0,0.0001,2]
[405767296,1771289438342,-500.0,0.0001,2]
[405767297,1771289438352,-500.0,0.0001,2]
[405767298,1771289438368,-151.0,0.0001,2]
[405767299,1771289438386,-500.0,0.0001,2]
[405767300,1771289438397,-500.0,0.0001,2]
[405767301,1771289438407,-151.0,0.0001,2]
[405767302,1771289438418,-500.0,0.0001,2]
[405767303,1771289438429,-500.0,0.0001,2]
[405767304,1771289438439,-151.0,0.0001,2]
[405767305,1771289438450,-500.0,0.0001,2]
[405767306,1771289438464,-500.0,0.0001,2]
[405767307,1771289438474,-151.0,0.0001,2]
[405767308,1771289438485,-500.0,0.0001,2]
[405767309,1771289438496,-151.0,0.0001,2]
[405767310,1771289438506,-500.0,0.0001,2]
[405767311,1771289438518,-151.0,0.0001,2]
[405767312,1771289438528,-151.0,0.0001,2]
[405767313,1771289438540,-151.0,0.0001,2]
[405767314,1771289438955,-200.0,0.0001,2]
[405767315,1771289438967,-200.0,0.0001,2]
[405767316,1771289438977,-274.0,0.0001,2]
[405767317,1771289438986,-274.0,0.0001,2]
[405767318,1771289438996,-500.0,0.0001,2]
[405767319,1771289439007,-174.29812164,0.0001,2]
[405767320,1771289439016,-174.29812164,0.0001,2]
[405767321,1771289439027,-500.0,0.0001,2]
[405767322,1771289439037,-579.3688882,0.0001,2]
[405767323,1771289439047,-678.0624453,0.0001,2]
[405767324,1771289439058,-240045.24415108,0.00010099,2]
[405767325,1771289439068,-678.0624453,0.00010205,2]
[405767326,1771289439079,-299.99,0.00010215,2]
[405767327,1771289439099,-4128.9149,0.00010215,2]
[405767328,1771289439117,-80036.0974,0.00010215,2]
[405767329,1771289439126,-195.91,0.00010233,2]
[405767330,1771289439136,-500.0,0.00010274,2]
[405767331,1771289439146,-171.6,0.00010274,2]
[405767332,1771289439155,-150.99,0.00010309,2]
[405767333,1771289439165,-150.99,0.00010309,2]
[405767334,1771289439174,-4502.27,0.00010309,2]
[405767335,1771289439184,-999.99,0.00010309,2]
[405767336,1771289439194,-9999.99,0.00010309,2]
[405767337,1771289439203,-9999.99,0.00010309,2]
[405767338,1771289439213,-276.7646508,0.00010481,2]
[405767339,1771289439222,-500.0,0.00010548,2]
[405767340,1771289439231,-171.61,0.00010548,2]
[405767341,1771289439241,-200.0,0.00010548,2]
[405767342,1771289439250,-200.0,0.00010548,2]
[405767343,1771289439260,-500.0,0.00010548,2]
[405767344,1771289439270,-1680.0,0.00010614,2]
[405767345,1771289439279,-255.0,0.00010615,2]
[405767346,1771289439289,-420.0,0.00010615,2]
[405767347,1771289439298,-250.0,0.00010615,2]
[405767348,1771289439308,-420.0,0.00010615,2]
[405767349,1771289439317,-250.0,0.00010616,2]
[405767350,1771289439327,-428.75614517,0.00010646,2]
[405767351,1771289439336,-250.0,0.00010726,2]
[405767352,1771289439346,-2046.05,0.00010733,2]
[405767353,1771289439355,-1000.0,0.00010799,2]
[405767354,1771289439364,-500.0,0.00010822,2]
[405767355,1771289439373,-2046.05,0.00010874,2]
[405767356,1771289439383,-2670.92523887,0.000109,2]
[405767357,1771289439392,-2670.92523884,0.000109,2]
[405767358,1771289439400,-454.39463635,0.0001091,2]
[405767359,1771289439410,-500.0,0.00010959,2]
[405767360,1771289439420,-225.40194183,0.00010959,2]
[405767361,1771289439429,-2142.59,0.00010959,2]
[405767362,1771289439439,-166.66,0.00010959,2]
[405767363,1771289439450,-500.0,0.00010973,2]
[405767364,1771289439459,-164.58939136,0.00010973,2]
[405767365,1771289439469,-500.0,0.00010973,2]
[405767366,1771289439479,-160.34933697,0.00010973,2]
[405767367,1771289439489,-500.0,0.00010973,2]
[405767368,1771289439499,-500.0,0.00010973,2]
[405767369,1771289439509,-500.0,0.00010973,2]
[405767370,1771289439524,-500.0,0.00010973,2]
[405767371,1771289439546,-500.0,0.00010973,2]
[405767372,1771289439559,-500.0,0.00010973,2]
[405767373,1771289439570,-500.0,0.00010973,2]
[405767374,1771289439580,-500.0,0.00010973,2]
[405767375,1771289439590,-501.83608545,0.00010973,2]
[405767376,1771289439599,-796.70984975,0.00010987,2]
[405767377,1771289439609,-2046.05,0.00011015,2]
[405767378,1771289439619,-195.91,0.0001102,2]
[405767379,1771289439633,-166.66,0.00011068,2]
[405767380,1771289439643,-500.0,0.00011096,2]
[405767381,1771289439652,-200.0,0.00011096,2]
[405767382,1771289439660,-200.0,0.00011096,2]
[405767383,1771289439670,-500.0,0.00011096,2]
[405767384,1771289439679,-20320.06049673,0.00011099,2]
[405767385,1771289439689,-20320.06049673,0.00011099,2]
[405767386,1771289439699,-4998.2045131,0.00011099,2]
[405767387,1771289439708,-4998.20451304,0.00011099,2]
[405767388,1771289439718,-2046.05,0.00011156,2]
[405767389,1771289439727,-166.66,0.00011178,2]
[405767390,1771289439736,-150.0,0.00011233,2]
[405767391,1771289439752,-166.66,0.00011288,2]
[405767392,1771289439774,-2046.05,0.00011298,2]
[405767393,1771289439791,-152.44,0.00011346,2]
[405767394,1771289439802,-838.24624755,0.00011357,2]
[405767395,1771289439814,-500.0,0.0001137,2]
[405767396,1771289439824,-166.66,0.00011397,2]
[405767397,1771289439834,-4998.20451304,0.00011406,2]
[405767398,1771289439843,-20320.06049673,0.00011406,2]
[405767399,1771289439854,-2046.05,0.00011439,2]
[405767400,1771289439864,-166.66,0.00011507,2]
[405767401,1771289439876,-500.0,0.00011521,2]
[405767402,1771289439889,-1000.0,0.00011521,2]
[405767403,1771289439900,-500.0,0.00011521,2]
[405767404,1771289439912,-1000.0,0.00011521,2]
[405767405,1771289439926,-642.27910673,0.00011521,2]
[405767406,1771289439937,-1000.0,0.00011521,2]
[405767407,1771289439949,-2046.05,0.0001158,2]
[405767408,1771289439959,-500.0,0.00011644,2]
[405767409,1771289439971,-200.0,0.00011644,2]
[405767410,1771289439982,-200.0,0.00011644,2]
[405767411,1771289439993,-500.0,0.00011644,2]
[405767412,1771289440002,-2351.0,0.00011676,2]
[405767413,1771289440014,-433.0,0.00011677,2]
[405767414,1771289440026,-587.0,0.00011677,2]
[405767415,1771289440037,-587.0,0.00011677,2]
[405767416,1771289440047,-2046.05,0.00011721,2]
[405767417,1771289440056,-195.91,0.00011807,2]
[405767418,1771289440069,-2046.05,0.00011863,2]
[405767419,1771289440079,-500.0,0.00011918,2]
[405767420,1771289440092,-2670.92523884,0.00011936,2]
[405767421,1771289440104,-2046.05,0.00012004,2]
[405767422,1771289440116,-1500.0,0.00012068,2]
[405767423,1771289440128,-1500.0,0.00012068,2]
[405767424,1771289440138,-1500.0,0.00012068,2]
[405767425,1771289440147,-2046.05,0.00012145,2]
[405767426,1771289440156,-200.0,0.00012192,2]
[405767427,1771289440167,-200.0,0.00012192,2]
[405767428,1771289440177,-500.0,0.00012192,2]
[405767429,1771289440187,-2046.05,0.00012286,2]
[405767430,1771289440198,-4998.20451304,0.00012334,2]
[405767431,1771289440209,-20320.06049673,0.00012334,2]
[405767432,1771289440219,-2046.05,0.00012428,2]
[405767433,1771289440229,-2046.05,0.00012569,2]
[405767434,1771289440239,-1786.3918722,0.00012616,2]
[405767435,1771289440249,-367.87853935,0.00012616,2]
[405767436,1771289440259,-2000.0,0.00012616,2]
[405767437,1771289440268,-2046.05,0.0001271,2]
[405767438,1771289440281,-200.0,0.0001274,2]
[405767439,1771289440298,-200.0,0.0001274,2]
[405767440,1771289440310,-500.0,0.0001274,2]
[405767441,1771289440323,-250.0,0.0001275,2]
[405767442,1771289440337,-3292.0,0.00012843,2]
[405767443,1771289440347,-736.0,0.00012844,2]
[405767444,1771289440358,-823.0,0.00012844,2]
[405767445,1771289440370,-823.0,0.00012844,2]
[405767446,1771289440379,-2046.05,0.00012851,2]
[405767447,1771289440391,-152.44,0.00012966,2]
[405767448,1771289440400,-2046.05,0.00012992,2]
[405767449,1771289440408,-857.97782352,0.00013,2]
[405767450,1771289440417,-543.18341436,0.00013,2]
[405767451,1771289440427,-2670.92523884,0.00013129,2]
[405767452,1771289440437,-2046.05,0.00013134,2]
[405767453,1771289440446,-2500.0,0.00013164,2]
[405767454,1771289440455,-4998.20451304,0.00013262,2]
[405767455,1771289440464,-20320.06049673,0.00013262,2]
[405767456,1771289440474,-2046.05,0.00013275,2]
[405767457,1771289440484,-2046.05,0.00013416,2]
[405767458,1771289440494,-500.0,0.00013698,2]
[405767459,1771289440503,-500.0,0.00013698,2]
[405767460,1771289440512,-500.0,0.00013698,2]
[405767461,1771289440522,-500.0,0.00013698,2]
[405767462,1771289440531,-500.50315893,0.00013698,2]
[405767463,1771289440540,-500.0,0.00013698,2]
[405767464,1771289440550,-500.0,0.00013698,2]
[405767465,1771289440559,-500.0,0.00013698,2]
[405767466,1771289440569,-500.0,0.00013698,2]
[405767467,1771289440578,-500.0,0.00013698,2]
[405767468,1771289440588,-500.0,0.00013698,2]
[405767469,1771289440598,-500.0,0.00013698,2]
[405767470,1771289440608,-500.0,0.00013698,2]
[405767471,1771289440621,-500.0,0.00013698,2]
[405767472,1771289440631,-500.0,0.00013698,2]
[405767473,1771289440640,-378.99880942,0.00013698,2]